fUST/lending_fUST_20260614
["ID","MTS","AMOUNT","RATE_DAILY","PERIOD"]
[425004663,1781406639000,-571.902389,0.00021827,2]
[425004654,1781406639000,-500.0,0.00021149,2]
[425004667,1781406639000,-1433.24334935,0.00022012,2]
[425004664,1781406639000,-3209.84875717,0.00021879,2]
[425004656,1781406639000,-1000.0,0.00021192,10]
[425004655,1781406639000,-501.39850824,0.00021149,2]
[425004661,1781406639000,-163.50309963,0.00021517,7]
[425004659,1781406639000,-152.0,0.00021289,2]
[425004660,1781406639000,-520.35985506,0.00021517,2]
[425004658,1781406639000,-170.27,0.00021211,2]
[425004657,1781406639000,-791.0,0.00021192,10]
[425004668,1781406639000,-522.25692179,0.00022012,2]
[425004669,1781406639000,-152.0,0.00022866,7]
[425004673,1781406639000,-69.62252978,0.00023222,2]
[425004670,1781406639000,-152.0,0.00022866,7]
[425004671,1781406639000,-152.0,0.00022873,7]
[425004624,1781406639000,-1000.0,0.00017514,2]
[425004651,1781406639000,-281.01991006,0.00021,2]
[425004648,1781406639000,-312.78446423,0.00020749,7]
[425004666,1781406639000,-500.0,0.00021946,2]
[425004643,1781406639000,-152.0,0.00020173,7]
[425004629,1781406639000,-1411.20789947,0.00019141,2]
[425004627,1781406639000,-571.902389,0.00018791,2]
[425004619,1781406639000,-1000.0,0.00015922,2]
[425004650,1781406639000,-598.46658332,0.00020974,2]
[425004641,1781406639000,-312.78446423,0.00020173,7]
[425004632,1781406639000,-467.07837291,0.00019141,2]
[425004630,1781406639000,-2202.80733058,0.00019141,2]
[425004633,1781406639000,-312.78446423,0.00019212,7]
[425004634,1781406639000,-500.0,0.00019264,2]
[425004635,1781406639000,-1000.0,0.00019266,2]
[425004636,1781406639000,-492.0,0.00019266,2]
[425004631,1781406639000,-441.00246859,0.00019141,2]
[425004639,1781406639000,-571.902389,0.0001955,2]
[425004638,1781406639000,-1955.50027114,0.00019466,2]
[425004640,1781406639000,-312.78446423,0.00019596,7]
[425004644,1781406639000,-571.902389,0.00020309,2]
[425004647,1781406639000,-163.50309963,0.00020749,7]
[425004642,1781406639000,-152.0,0.00020173,7]
[425004645,1781406639000,-360.98,0.00020748,2]
[425004649,1781406639000,-259.79791314,0.000209,2]
[425004672,1781406639000,-393.82696779,0.0002322,7]
[425004646,1781406639000,-1571.4039567,0.00020749,2]
[425004637,1781406639000,-3209.84875717,0.00019434,2]
[425004697,1781406646000,-165.968231,0.00021918,2]
[425004694,1781406646000,-152.0,0.00020179,7]
[425004696,1781406646000,-165.968231,0.00021918,2]
[425004698,1781406646000,-121.86747022,0.00023222,2]
[425004695,1781406646000,-165.968231,0.00021918,2]
[425004702,1781406647000,-180.4428433,0.00023311,2]
[425004703,1781406647000,-243.03137146,0.00023312,10]
[425004700,1781406647000,-500.0,0.00023262,2]
[425004701,1781406647000,-1000.0,0.00023278,5]
[425004699,1781406647000,-300.0,0.00023222,4]
[425004809,1781407832000,-547.35603744,0.00012456,2]
[425004823,1781407840000,-500.0,0.00013698,2]
[425004819,1781407840000,-300.0,0.00013229,2]
[425004820,1781407840000,-1709.9389324,0.0001323,2]
[425004821,1781407840000,-325.80027339,0.0001323,2]
[425004822,1781407840000,-18129.31184521,0.0001323,2]
[425004824,1781407840000,-477.18411863,0.00013699,2]
[425004818,1781407840000,-4452.64396256,0.00012456,2]
[425004827,1781407840000,-154.56,0.00016609,2]
[425004826,1781407840000,-159.68,0.00016271,2]
[425004828,1781407840000,-500.0,0.00017786,2]
[425004830,1781407840000,-386.21303144,0.00017786,2]
[425004829,1781407840000,-460.3574873,0.00017786,2]
[425004831,1781407840000,-46212.1578091,0.00017787,2]
[425004832,1781407840000,-5144.68240234,0.00017787,2]
[425004825,1781407840000,-153.62,0.00015988,2]
[425004849,1781407842000,152.0,0.00023529,30]
[425004929,1781407847000,-3226.15,0.00012331,2]
[425004933,1781407892000,-1122.03485546,0.00012331,2]
[425004934,1781408404000,157.85345095,0.00023019,120]
[425004935,1781408425000,215.01199103,0.00019313,60]
[425004997,1781408882000,152.0,0.00023892,30]
[425005051,1781409031000,-500.0,0.00013698,2]
[425005049,1781409031000,-577.24240591,0.00013698,2]
[425005047,1781409031000,-500.0,0.00013698,2]
[425005054,1781409031000,-1269.29643033,0.00017392,2]
[425005052,1781409031000,-15123.7882882,0.00015616,2]
[425005045,1781409031000,-218.35703447,0.00013425,2]
[425005055,1781409031000,-2971.3323446,0.00017424,2]
[425005056,1781409031000,-500.0,0.0001747,2]
[425005061,1781409031000,-6252.47875586,0.00017471,2]
[425005065,1781409031000,-6510.29183615,0.00017471,2]
[425005060,1781409031000,-369.57680667,0.0001747,2]
[425005053,1781409031000,-208.58202106,0.00016865,2]
[425005058,1781409031000,-500.0,0.0001747,2]
[425005155,1781409038000,-538.68982453,0.00021198,2]
[425005146,1781409038000,-319.89106663,0.00021017,2]
[425005185,1781409038000,-538.68982453,0.00022318,2]
[425005148,1781409038000,-365.22420064,0.00021017,2]
[425005144,1781409038000,-163.30070807,0.00021017,2]
[425005150,1781409038000,-313.30903938,0.00021017,2]
[425005157,1781409038000,-357.7094061,0.0002164,2]
[425005159,1781409038000,-293.64733325,0.00021646,2]
[425005161,1781409038000,-500.0,0.00021917,2]
[425005152,1781409038000,-151.13413726,0.00021197,2]
[425005166,1781409038000,-157.66982,0.00021918,2]
[425005164,1781409038000,-500.0,0.00021918,2]
[425005168,1781409038000,-157.66982,0.00021918,2]
[425005179,1781409038000,-157.66982,0.00021918,2]
[425005170,1781409038000,-157.66982,0.00021918,2]
[425005174,1781409038000,-157.66982,0.00021918,2]
[425005172,1781409038000,-157.66982,0.00021918,2]
[425005175,1781409038000,-157.66982,0.00021918,2]
[425005177,1781409038000,-157.66982,0.00021918,2]
[425005181,1781409038000,-286.460192,0.00022047,2]
[425005183,1781409038000,-535.45515192,0.00022192,2]
[425005153,1781409038000,-171.223,0.00021197,2]
[425005162,1781409038000,-500.0,0.00021917,2]
[425005143,1781409038000,-409.16065467,0.00020797,2]
[425005118,1781409038000,-215.01199104,0.00018108,2]
[425005141,1781409038000,-870.04690231,0.00020797,2]
[425005187,1781409038000,-157.66982,0.00022318,2]
[425005094,1781409038000,-880.38919649,0.00017471,2]
[425005096,1781409038000,-221.68,0.00017491,2]
[425005100,1781409038000,-500.0,0.00017786,2]
[425005098,1781409038000,-500.0,0.00017786,2]
[425005102,1781409038000,-523.69690357,0.00017786,2]
[425005104,1781409038000,-95.47409373,0.00017786,2]
[425005106,1781409038000,-404.52590627,0.00017786,2]
[425005108,1781409038000,-2295.72962968,0.00017786,2]
[425005112,1781409038000,-184.89,0.00017916,2]
[425005114,1781409038000,-174.18356403,0.00018011,2]
[425005110,1781409038000,-1007.0,0.000178,2]
[425005116,1781409038000,-313.53041525,0.00018011,2]
[425005130,1781409038000,-2030.855737,0.00019526,2]
[425005120,1781409038000,-1000.0,0.00018295,2]
[425005122,1781409038000,-189.14,0.00018422,2]
[425005124,1781409038000,-557.38740488,0.00018676,2]
[425005126,1781409038000,-215.01199104,0.00018871,14]
[425005128,1781409038000,-1269.29643026,0.00019081,2]
[425005132,1781409038000,-15123.7882882,0.00019738,2]
[425005134,1781409038000,-538.68982454,0.00020078,2]
[425005135,1781409038000,-152.0,0.00020178,7]
[425005139,1781409038000,-1269.29643026,0.0002077,2]
[425005137,1781409038000,-152.0,0.00020178,7]
[425005190,1781409038000,-157.66982,0.00022318,2]
[425005249,1781409038000,-876.22026193,0.00023752,2]
[425005192,1781409038000,-157.66982,0.00022318,2]
[425005254,1781409038000,-157.66982,0.00023859,2]
[425005247,1781409038000,-600.0,0.00023684,10]
[425005252,1781409038000,-157.66982,0.00023859,2]
[425005250,1781409038000,-939.87,0.00023836,2]
[425005256,1781409038000,-157.66982,0.00023859,2]
[425005258,1781409038000,-157.669813,0.00023859,2]
[425005260,1781409038000,-15123.7882882,0.00023859,2]
[425005261,1781409038000,-417.15472785,0.00024,3]
[425005263,1781409038000,-160.0,0.00024071,4]
[425005265,1781409038000,-180.4428433,0.00024099,2]
[425005267,1781409038000,-2183.46219615,0.000241,2]
[425005269,1781409038000,-796.0,0.000241,2]
[425005189,1781409038000,-157.66982,0.00022318,2]
[425005278,1781409038000,-246.507971,0.00024164,14]
[425005271,1781409038000,-939.87,0.0002411,2]
[425005274,1781409038000,-1269.29643026,0.00024148,2]
[425005280,1781409038000,-219.775848,0.00024164,14]
[425005276,1781409038000,-170.005497,0.00024164,14]
[425005281,1781409038000,-263.893618,0.00024164,14]
[425005283,1781409038000,-202.318441,0.00024164,14]
[425005285,1781409038000,-777.07120712,0.00024164,2]
[425005287,1781409038000,-150.356,0.0002432,2]
[425005289,1781409038000,-268.568,0.0002432,2]
[425005244,1781409038000,-939.87,0.00023562,2]
[425005243,1781409038000,-538.68982453,0.00023437,2]
[425005273,1781409038000,-500.0,0.00024121,2]
[425005239,1781409038000,-157.66982,0.00023361,2]
[425005241,1781409038000,-166.51907132,0.000234,10]
[425005194,1781409038000,-327.37820358,0.00022437,2]
[425005196,1781409038000,-1269.29643026,0.00022459,2]
[425005198,1781409038000,-151.83321233,0.00022973,2]
[425005202,1781409038000,-151.0,0.00023,9]
[425005204,1781409038000,-151.0,0.00023,7]
[425005210,1781409038000,-151.0,0.00023,9]
[425005208,1781409038000,-151.0,0.00023,10]
[425005206,1781409038000,-151.0,0.00023,6]
[425005212,1781409038000,-151.0,0.00023,9]
[425005214,1781409038000,-300.0,0.00023042,3]
[425005200,1781409038000,-151.0,0.00023,5]
[425005217,1781409038000,-1000.0,0.0002315,5]
[425005236,1781409038000,-157.66982,0.00023361,2]
[425005216,1781409038000,-500.0,0.00023119,2]
[425005233,1781409038000,-157.66982,0.00023361,2]
[425005234,1781409038000,-157.66982,0.00023361,2]
[425005223,1781409038000,-1439.505,0.00023361,2]
[425005231,1781409038000,-445.0,0.00023361,2]
[425005229,1781409038000,-191.029,0.00023361,2]
[425005227,1781409038000,-744.0,0.00023361,2]
[425005221,1781409038000,-160.0,0.00023272,3]
[425005225,1781409038000,-1869.549,0.00023361,2]
[425005219,1781409038000,-1007.95,0.000232,3]
[425005336,1781409039000,-156.788144,0.00024657,2]
[425005338,1781409039000,-156.788148,0.00024657,2]
[425005334,1781409039000,-156.788144,0.00024657,2]
[425005337,1781409039000,-156.788144,0.00024657,2]
[425005335,1781409039000,-156.788144,0.00024657,2]
[425005333,1781409039000,-156.788144,0.00024657,2]
[425005328,1781409039000,-205.37733386,0.00024656,2]
[425005330,1781409039000,-156.788144,0.00024657,2]
[425005331,1781409039000,-156.788144,0.00024657,2]
[425005329,1781409039000,-210.0,0.00024657,2]
[425005327,1781409039000,-500.0,0.00024656,2]
[425005339,1781409039000,-500.0,0.00024657,2]
[425005332,1781409039000,-156.788144,0.00024657,2]
[425005342,1781409039000,-500.0,0.00024657,2]
[425005352,1781409039000,-500.0,0.00024657,2]
[425005344,1781409039000,-502.55540965,0.00024657,2]
[425005343,1781409039000,-504.09274401,0.00024657,2]
[425005340,1781409039000,-507.12650838,0.00024657,2]
[425005345,1781409039000,-502.30019444,0.00024657,2]
[425005346,1781409039000,-509.24106111,0.00024657,2]
[425005347,1781409039000,-500.0,0.00024657,2]
[425005349,1781409039000,-500.0,0.00024657,2]
[425005351,1781409039000,-734.45,0.00024657,2]
[425005350,1781409039000,-500.0,0.00024657,2]
[425005348,1781409039000,-503.75127736,0.00024657,2]
[425005353,1781409039000,-500.0,0.00024657,2]
[425005354,1781409039000,-503.63701262,0.00024657,2]
[425005325,1781409039000,-500.0,0.00024656,2]
[425005341,1781409039000,-500.0,0.00024657,2]
[425005323,1781409039000,-500.0,0.00024656,2]
[425005356,1781409039000,-500.0,0.00024657,2]
[425005326,1781409039000,-500.0,0.00024656,2]
[425005291,1781409039000,-151.6,0.00024354,7]
[425005293,1781409039000,-939.87,0.00024384,2]
[425005298,1781409039000,-160.54,0.00024524,2]
[425005300,1781409039000,-538.68982453,0.00024557,2]
[425005299,1781409039000,-151.6,0.00024554,7]
[425005295,1781409039000,-151.6,0.00024454,7]
[425005301,1781409039000,-3000.0,0.000246,2]
[425005297,1781409039000,-200.66,0.00024524,2]
[425005303,1781409039000,-3000.0,0.0002461,2]
[425005305,1781409039000,-300.0,0.0002462,4]
[425005304,1781409039000,-3000.0,0.0002462,2]
[425005302,1781409039000,-462.0,0.000246,2]
[425005307,1781409039000,-3000.0,0.0002463,2]
[425005306,1781409039000,-200.66,0.00024624,2]
[425005308,1781409039000,-500.0,0.00024639,2]
[425005313,1781409039000,-151.6,0.00024654,7]
[425005310,1781409039000,-248.08,0.00024647,3]
[425005311,1781409039000,-744.27,0.00024647,3]
[425005309,1781409039000,-3000.0,0.0002464,2]
[425005312,1781409039000,-3000.0,0.0002465,2]
[425005314,1781409039000,-500.0,0.00024656,2]
[425005316,1781409039000,-500.0,0.00024656,2]
[425005317,1781409039000,-500.0,0.00024656,2]
[425005315,1781409039000,-500.0,0.00024656,2]
[425005319,1781409039000,-500.0,0.00024656,2]
[425005318,1781409039000,-500.0,0.00024656,2]
[425005320,1781409039000,-500.0,0.00024656,2]
[425005322,1781409039000,-500.0,0.00024656,2]
[425005324,1781409039000,-500.0,0.00024656,2]
[425005321,1781409039000,-500.0,0.00024656,2]
[425005355,1781409039000,-500.0,0.00024657,2]
[425005413,1781409039000,-502.95779221,0.00024657,2]
[425005358,1781409039000,-500.0,0.00024657,2]
[425005392,1781409039000,-500.0,0.00024657,2]
[425005395,1781409039000,-500.0,0.00024657,2]
[425005394,1781409039000,-500.0,0.00024657,2]
[425005393,1781409039000,-504.47616193,0.00024657,2]
[425005396,1781409039000,-500.0,0.00024657,2]
[425005398,1781409039000,-503.01554515,0.00024657,2]
[425005397,1781409039000,-500.0,0.00024657,2]
[425005399,1781409039000,-500.0,0.00024657,2]
[425005400,1781409039000,-504.72651145,0.00024657,2]
[425005401,1781409039000,-509.88179441,0.00024657,2]
[425005402,1781409039000,-500.0,0.00024657,2]
[425005403,1781409039000,-506.40092623,0.00024657,2]
[425005404,1781409039000,-1438.32,0.00024657,2]
[425005391,1781409039000,-500.0,0.00024657,2]
[425005406,1781409039000,-500.0,0.00024657,2]
[425005407,1781409039000,-500.0,0.00024657,2]
[425005408,1781409039000,-500.0,0.00024657,2]
[425005409,1781409039000,-500.0,0.00024657,2]
[425005410,1781409039000,-500.0,0.00024657,2]
[425005411,1781409039000,-500.0,0.00024657,2]
[425005412,1781409039000,-500.0,0.00024657,2]
[425005418,1781409039000,-500.0,0.00024657,2]
[425005415,1781409039000,-500.0,0.00024657,2]
[425005414,1781409039000,-500.0,0.00024657,2]
[425005416,1781409039000,-500.0,0.00024657,2]
[425005417,1781409039000,-500.0,0.00024657,2]
[425005419,1781409039000,-500.0,0.00024657,2]
[425005420,1781409039000,-501.08682505,0.00024657,2]
[425005405,1781409039000,-1115.01,0.00024657,2]
[425005390,1781409039000,-504.70921932,0.00024657,2]
[425005357,1781409039000,-168.52846646,0.00024657,2]
[425005385,1781409039000,-500.0,0.00024657,2]
[425005389,1781409039000,-834.56,0.00024657,2]
[425005359,1781409039000,-500.0,0.00024657,2]
[425005362,1781409039000,-500.0,0.00024657,2]
[425005360,1781409039000,-500.0,0.00024657,2]
[425005365,1781409039000,-307.19100428,0.00024657,2]
[425005363,1781409039000,-500.0,0.00024657,2]
[425005361,1781409039000,-500.0,0.00024657,2]
[425005364,1781409039000,-500.0,0.00024657,2]
[425005367,1781409039000,-500.0,0.00024657,2]
[425005366,1781409039000,-500.0,0.00024657,2]
[425005370,1781409039000,-500.0,0.00024657,2]
[425005368,1781409039000,-500.0,0.00024657,2]
[425005371,1781409039000,-500.0,0.00024657,2]
[425005369,1781409039000,-500.0,0.00024657,2]
[425005372,1781409039000,-500.0,0.00024657,2]
[425005381,1781409039000,-795.57,0.00024657,2]
[425005376,1781409039000,-500.0,0.00024657,2]
[425005375,1781409039000,-160.88110714,0.00024657,2]
[425005373,1781409039000,-504.10774795,0.00024657,2]
[425005377,1781409039000,-500.0,0.00024657,2]
[425005378,1781409039000,-500.0,0.00024657,2]
[425005379,1781409039000,-500.0,0.00024657,2]
[425005382,1781409039000,-169.85691963,0.00024657,2]
[425005374,1781409039000,-500.0,0.00024657,2]
[425005380,1781409039000,-500.0,0.00024657,2]
[425005383,1781409039000,-500.0,0.00024657,2]
[425005386,1781409039000,-500.0,0.00024657,2]
[425005384,1781409039000,-500.0,0.00024657,2]
[425005388,1781409039000,-500.0,0.00024657,2]
[425005387,1781409039000,-500.0,0.00024657,2]
[425005422,1781409040000,-58.87691687,0.00024657,2]
[425005421,1781409040000,-441.12308313,0.00024657,2]
[425005423,1781409040000,-249.52308203,0.00024657,2]
[425005427,1781409040000,-524.547503,0.000241,2]
[425005425,1781409040000,-75.51486494,0.00024657,2]
[425005426,1781409040000,-359.99275684,0.00024657,2]
[425005424,1781409040000,-250.47691797,0.00024657,2]
[425005464,1781409043000,-506.82166727,0.00024657,2]
[425005466,1781409043000,-500.0,0.00024657,2]
[425005462,1781409043000,-500.0,0.00024657,2]
[425005460,1781409043000,-502.08306608,0.00024657,2]
[425005456,1781409043000,-500.0,0.00024657,2]
[425005459,1781409043000,-500.0,0.00024657,2]
[425005458,1781409043000,-500.7227853,0.00024657,2]
[425005454,1781409043000,-501.09038078,0.00024657,2]
[425005457,1781409043000,-500.0,0.00024657,2]
[425005455,1781409043000,-500.0,0.00024657,2]
[425005453,1781409043000,-500.0,0.00024657,2]
[425005450,1781409043000,-89.38519374,0.00024657,2]
[425005452,1781409043000,-505.95052545,0.00024657,2]
[425005451,1781409043000,-410.61480626,0.00024657,2]
[425005449,1781409043000,-502.33189386,0.00024657,2]
[425005445,1781409043000,-578.2851967,0.00024657,2]
[425005465,1781409043000,-500.0,0.00024657,2]
[425005447,1781409043000,-500.0,0.00024657,2]
[425005444,1781409043000,-67.66977019,0.00024657,2]
[425005442,1781409043000,-523.69580858,0.000236,2]
[425005443,1781409043000,-475.452497,0.000241,2]
[425005441,1781409043000,-482.49185942,0.000236,2]
[425005448,1781409043000,-500.0,0.00024657,2]
[425005463,1781409043000,-500.09738206,0.00024657,2]
[425005446,1781409043000,-65.87296256,0.00024657,2]
[425005467,1781409043000,-500.0,0.00024657,2]
[425005468,1781409043000,-500.0,0.00024657,2]
[425005488,1781409043000,-500.0,0.00024657,2]
[425005486,1781409043000,-500.0,0.00024657,2]
[425005490,1781409043000,-501.06958637,0.00024657,2]
[425005491,1781409043000,-282.00803592,0.00024657,2]
[425005489,1781409043000,-500.0,0.00024657,2]
[425005487,1781409043000,-502.66406931,0.00024657,2]
[425005481,1781409043000,-500.0,0.00024657,2]
[425005484,1781409043000,-500.0,0.00024657,2]
[425005483,1781409043000,-501.6479887,0.00024657,2]
[425005482,1781409043000,-500.0,0.00024657,2]
[425005485,1781409043000,-500.0,0.00024657,2]
[425005461,1781409043000,-500.0,0.00024657,2]
[425005479,1781409043000,-500.0,0.00024657,2]
[425005477,1781409043000,-500.0,0.00024657,2]
[425005476,1781409043000,-1000.0,0.00024657,2]
[425005475,1781409043000,-500.53337493,0.00024657,2]
[425005473,1781409043000,-1268.26,0.00024657,2]
[425005478,1781409043000,-468.3069166,0.00024657,2]
[425005474,1781409043000,-500.0,0.00024657,2]
[425005469,1781409043000,-500.0,0.00024657,2]
[425005472,1781409043000,-500.0,0.00024657,2]
[425005480,1781409043000,-500.0,0.00024657,2]
[425005470,1781409043000,-500.0,0.00024657,2]
[425005471,1781409043000,-500.0,0.00024657,2]
[425006830,1781409691000,-1164.11361305,0.000118,5]
[425006835,1781410143000,508.49894714,0.0002411,30]
[425006836,1781410225000,164.41858777,0.00018682,120]
[425006971,1781410238000,-1164.11361305,0.00011449,2]
[425006973,1781410238000,-2661.65620316,0.000118,5]
[425007038,1781410243000,-164.41858778,0.00020819,14]
[425007033,1781410243000,-6649.28807166,0.000118,5]
[425007035,1781410243000,-164.41858778,0.00017803,2]
[425007036,1781410243000,-210.86080624,0.00020085,2]
[425007034,1781410243000,-200.82396505,0.0001595,5]
[425007046,1781410243000,-151.036,0.00024048,2]
[425007045,1781410243000,-3780.9470721,0.00024015,2]
[425007050,1781410243000,-445.0,0.00024048,2]
[425007049,1781410243000,-191.029,0.00024048,2]
[425007043,1781410243000,-156.0,0.00023963,3]
[425007039,1781410243000,-152.0,0.00021301,7]
[425007044,1781410243000,-334.74465922,0.00024015,2]
[425007037,1781410243000,-218.63507824,0.00020085,2]
[425007040,1781410243000,-1053.44330531,0.000215,2]
[425007051,1781410243000,-689.23,0.0002411,2]
[425007041,1781410243000,-689.23,0.00023562,2]
[425007042,1781410243000,-689.23,0.00023836,2]
[425007048,1781410243000,-745.359,0.00024048,2]
[425007053,1781410243000,-797.0,0.000243,2]
[425007056,1781410243000,-689.23,0.00024384,2]
[425007054,1781410243000,-164.2955921,0.00024333,3]
[425007055,1781410243000,-1360.70357114,0.00024357,2]
[425007052,1781410243000,-229.8992971,0.00024257,2]
[425007057,1781410243000,-271.53,0.00024447,3]
[425007058,1781410243000,-814.59,0.00024447,3]
[425007059,1781410243000,-8193.17011427,0.00024457,2]
[425007047,1781410243000,-1840.0,0.00024048,2]
[425007125,1781410246000,-17561.0186629,0.00024457,2]
[425007127,1781410246000,-5246.37520864,0.00024457,2]
[425007129,1781410246000,-9475.18057025,0.00024457,2]
[425007298,1781411432000,-421.2,0.00022319,2]
[425007354,1781411438000,-2414.510304,0.00022319,2]
[425007355,1781411438000,-180.47891928,0.00023175,2]
[425007356,1781411438000,-2835.710304,0.00023484,2]
[425007357,1781411438000,-505.44,0.00023562,2]
[425007359,1781411438000,-505.44,0.00023836,2]
[425007360,1781411438000,-186.0,0.00023903,2]
[425007362,1781411438000,-1417.0,0.00023903,2]
[425007358,1781411438000,-228.13,0.00023679,2]
[425007363,1781411438000,-505.44,0.0002411,2]
[425007364,1781411438000,-171.223,0.0002411,6]
[425007367,1781411438000,-543.06,0.00024247,3]
[425007366,1781411438000,-244.03989071,0.00024242,2]
[425007368,1781411438000,-2386.15370909,0.00024257,2]
[425007365,1781411438000,-151.0,0.00024242,2]
[425007369,1781411438000,-109045.73789997,0.00024257,2]
[425007361,1781411438000,-445.0,0.00023903,2]
[425007372,1781411440000,-267.33643224,0.00024257,2]
[425007371,1781411440000,-15908.39457494,0.00024257,2]
[425007387,1781411443000,-2110.0,0.00024257,2]
[425007389,1781411443000,-508.60921729,0.00024257,2]
[425007391,1781411443000,-554.01676889,0.00024257,2]
[425007392,1781411443000,-3339.73672122,0.00024257,2]
[425007393,1781411443000,-7719.88931266,0.00024257,2]
[425007394,1781411443000,-5209.78927451,0.00024257,2]
[425007390,1781411443000,-1357.39668019,0.00024257,2]
[425007402,1781411446000,-22407.95086046,0.00024257,2]
[425007406,1781412411000,8455.69,0.00024109,30]
[425007461,1781412632000,-245.72216572,0.00023244,14]
[425007463,1781412632000,-180.33446011,0.00023562,2]
[425007466,1781412632000,-224.01553989,0.00023562,2]
[425007467,1781412632000,-1518.5345787,0.00023834,2]
[425007476,1781412632000,-20.34434603,0.00023834,2]
[425007474,1781412632000,-186.0,0.00023834,2]
[425007480,1781412632000,-108.1510381,0.00023836,2]
[425007478,1781412632000,-424.65565397,0.00023834,2]
[425007472,1781412632000,-321.4654213,0.00023834,2]
[425008538,1781412641000,-927.10143175,0.00023857,2]
[425008493,1781412641000,-171.224,0.00023842,5]
[425008492,1781412641000,-234.82337844,0.00023842,2]
[425008490,1781412641000,-296.1989619,0.00023836,2]
[425008495,1781412641000,-114.90105438,0.00023857,2]
[425008830,1781412643000,-5658.0053882,0.00023857,2]
[425008828,1781412643000,-152.0,0.00021307,7]
[425009160,1781412646000,-2642.26478934,0.00023857,2]
[425009135,1781412646000,-3380.55562623,0.00023857,2]
[425009133,1781412646000,-4929.44683281,0.00023857,2]
[425010759,1781413087000,153.0,0.0002,120]
[425010770,1781413368000,-152.0,0.00021301,7]
[425010819,1781413833000,-392.68885482,0.00020019,2]
[425010814,1781413833000,-389.63186203,0.00019819,2]
[425010845,1781413838000,-2468.93135462,0.00020119,2]
[425010844,1781413838000,-1026.96469568,0.00020019,2]
[425010848,1781413841000,-902.9028812,0.00020119,2]
[425010886,1781413846000,-938.57571329,0.00020119,2]
[425010890,1781413846000,-27617.99453229,0.00020734,9]
[425010888,1781413846000,-300.0,0.00020733,2]
[425010914,1781413847000,-480.4963346,0.00020734,9]
[425010912,1781413847000,-3271.30157219,0.00020734,9]
[425011629,1781413964000,1574.76,0.000241,30]
[425011634,1781414604000,172.6035472,0.00024109,30]
[425011635,1781414664000,265.0,0.0002,120]
[425011680,1781415032000,-932.55194263,0.00016662,2]
[425011683,1781415032000,-2067.44805737,0.00016662,2]
[425011695,1781415032000,-3529.53251562,0.00020734,9]
[425011697,1781415032000,-1340.85452247,0.00020886,2]
[425011693,1781415032000,-300.0,0.00020733,2]
[425011691,1781415032000,-545.72319982,0.00020733,2]
[425011685,1781415032000,-369.52090536,0.00018209,2]
[425011689,1781415032000,-379.4387698,0.00020675,2]
[425011687,1781415032000,-167.0,0.00018538,2]
[425011684,1781415032000,-4028.0,0.00017,2]
[425011928,1781415039000,-1830.79622631,0.00020886,2]
[425011939,1781415039000,-152.0,0.00021301,7]
[425011938,1781415039000,-6512.14822342,0.00020886,2]
[425011941,1781415039000,-152.0,0.00021301,7]
[425011940,1781415039000,-152.0,0.00021301,7]
[425011945,1781415039000,-152.0,0.00021307,7]
[425011942,1781415039000,-562.06000305,0.00021306,7]
[425011947,1781415039000,-152.0,0.00021314,7]
[425011943,1781415039000,-240.94882053,0.00021306,7]
[425011948,1781415039000,-156.351,0.00022492,2]
[425011946,1781415039000,-152.0,0.00021307,7]
[425011950,1781415039000,-16851.47200619,0.000225,2]
[425011949,1781415039000,-2421.41495395,0.000225,2]
[425011944,1781415039000,-152.0,0.00021307,7]
[425012567,1781415168000,-152.0,0.00021304,7]